[Event "Chessable Masters - Torneo preliminare"]
[White "Shimanov, Aleksandr"]
[Black "Vetoshko, Volodymyr"]
[WhiteFideId "4198603"]
[BlackFideId "14122480"]
[WhiteElo "2610"]
[BlackElo "2457"]
[Result "1-0"]
[Round "4"]
[TimeControl "600+2"]
[Date "2023.03.13"]
[WhiteClock "0:01:09"]
[BlackClock "0:00:03"]

1. e4 {[%clk 0:10:01]}  c5 {[%clk 0:10:00]} 2. Nf3 {[%clk 0:10:00]}  e6 {[%clk 0:09:59]} 3. c3 {[%clk 0:10:00]}  d5 {[%clk 0:09:53]} 4. exd5 {[%clk 0:10:00]}  Qxd5 {[%clk 0:09:50]} 5. d4 {[%clk 0:10:01]}  Nf6 {[%clk 0:09:51]} 6. Na3 {[%clk 0:10:01]}  Qd8 {[%clk 0:09:39]} 7. Bf4 {[%clk 0:09:20]}  cxd4 {[%clk 0:08:20]} 8. Nxd4 {[%clk 0:09:14]}  Nd5 {[%clk 0:05:58]} 9. Bg3 {[%clk 0:09:12]}  Be7 {[%clk 0:05:42]} 10. Nc4 {[%clk 0:09:03]}  O-O {[%clk 0:05:37]} 11. Bd3 {[%clk 0:09:03]}  Nd7 {[%clk 0:05:01]} 12. O-O {[%clk 0:08:53]}  N7f6 {[%clk 0:04:55]} 13. Qe2 {[%clk 0:08:45]}  Bd7 {[%clk 0:04:54]} 14. Rad1 {[%clk 0:08:44]}  Rc8 {[%clk 0:04:36]} 15. Rfe1 {[%clk 0:08:39]}  Re8 {[%clk 0:04:34]} 16. Ne5 {[%clk 0:08:19]}  Bf8 {[%clk 0:04:23]} 17. Bb1 {[%clk 0:08:09]}  Ba4 {[%clk 0:03:57]} 18. Rd2 {[%clk 0:08:04]}  Qb6 {[%clk 0:03:54]} 19. Qf3 {[%clk 0:07:39]}  Red8 {[%clk 0:03:33]} 20. Bh4 {[%clk 0:07:23]}  Be8 {[%clk 0:03:27]} 21. Qh3 {[%clk 0:06:47]}  Nf4 {[%clk 0:03:21]} 22. Qf3 {[%clk 0:06:38]}  Ng6 {[%clk 0:02:28]} 23. Bxg6 {[%clk 0:06:29]}  hxg6 {[%clk 0:02:30]} 24. Bxf6 {[%clk 0:05:55]}  gxf6 {[%clk 0:02:32]} 25. Qxf6 {[%clk 0:05:56]}  Bg7 {[%clk 0:02:32]} 26. Qf4 {[%clk 0:05:55]}  f6 {[%clk 0:02:17]} 27. Nxg6 {[%clk 0:04:11]}  Bxg6 {[%clk 0:02:19]} 28. Qg4 {[%clk 0:04:06]}  Bf7 {[%clk 0:01:25]} 29. Rd3 {[%clk 0:03:39]}  Rd5 {[%clk 0:00:47]} 30. h4 {[%clk 0:03:19]}  f5 {[%clk 0:00:41]} 31. Qg3 {[%clk 0:03:06]}  Qd6 {[%clk 0:00:32]} 32. Nxe6 {[%clk 0:02:22]}  Qxg3 {[%clk 0:00:28]} 33. Rxg3 {[%clk 0:02:24]}  Bxe6 {[%clk 0:00:23]} 34. Rxe6 {[%clk 0:02:26]}  Kf7 {[%clk 0:00:21]} 35. Re2 {[%clk 0:01:58]}  Be5 {[%clk 0:00:15]} 36. Rge3 {[%clk 0:01:59]}  Rd1+ {[%clk 0:00:14]} 37. Re1 {[%clk 0:02:00]}  Rxe1+ {[%clk 0:00:14]} 38. Rxe1 {[%clk 0:02:02]}  Bf6 {[%clk 0:00:12]} 39. g3 {[%clk 0:02:02]}  Rd8 {[%clk 0:00:14]} 40. Re2 {[%clk 0:02:03]}  f4 {[%clk 0:00:08]} 41. Kg2 {[%clk 0:02:04]}  Rd3 {[%clk 0:00:09]} 42. Kh3 {[%clk 0:02:00]}  f3 {[%clk 0:00:09]} 43. Rc2 {[%clk 0:02:00]}  b5 {[%clk 0:00:06]} 44. Kg4 {[%clk 0:02:02]}  Be5 {[%clk 0:00:06]} 45. Kf5 {[%clk 0:02:00]}  Bc7 {[%clk 0:00:03]} 46. Ke4 {[%clk 0:02:01]}  Rd1 {[%clk 0:00:05]} 47. Kxf3 {[%clk 0:02:02]}  Bb6 {[%clk 0:00:06]} 48. Kg4 {[%clk 0:01:36]}  Rf1 {[%clk 0:00:06]} 49. f4 {[%clk 0:01:37]}  a5 {[%clk 0:00:05]} 50. Re2 {[%clk 0:01:33]}  Ra1 {[%clk 0:00:04]} 51. Re5 {[%clk 0:01:28]}  Rxa2 {[%clk 0:00:04]} 52. Rxb5 {[%clk 0:01:29]}  Be3 {[%clk 0:00:06]} 53. h5 {[%clk 0:01:16]}  Bc1 {[%clk 0:00:07]} 54. Rb7+ {[%clk 0:01:16]}  Kg8 {[%clk 0:00:05]} 55. b3 {[%clk 0:01:16]}  Bb2 {[%clk 0:00:05]} 56. c4 {[%clk 0:01:09]}  Bc3 {[%clk 0:00:05]} 57. c5 {[%clk 0:01:09]}  Rd2 {[%clk 0:00:03]} 58. c6 {[%clk 0:01:09]} 1-0


[Site "Internet"]

[Event "Chessable Masters - Torneo preliminare"]
[White "Sargissian, Gabriel"]
[Black "Shyam, Sundar M."]
[WhiteFideId "13300881"]
[BlackFideId "5019141"]
[WhiteElo "2628"]
[BlackElo "2464"]
[Result "1-0"]
[Round "4"]
[TimeControl "600+2"]
[Date "2023.03.13"]
[WhiteClock "0:05:46"]
[BlackClock "0:00:04"]

1. d4 {[%clk 0:10:01]}  Nf6 {[%clk 0:10:00]} 2. c4 {[%clk 0:10:02]}  g6 {[%clk 0:10:02]} 3. Nc3 {[%clk 0:10:03]}  Bg7 {[%clk 0:10:03]} 4. e4 {[%clk 0:10:04]}  d6 {[%clk 0:10:05]} 5. Nf3 {[%clk 0:10:05]}  O-O {[%clk 0:10:04]} 6. Be2 {[%clk 0:10:07]}  e5 {[%clk 0:09:56]} 7. O-O {[%clk 0:10:08]}  Nc6 {[%clk 0:09:48]} 8. d5 {[%clk 0:10:08]}  Ne7 {[%clk 0:09:50]} 9. b4 {[%clk 0:10:10]}  Ne8 {[%clk 0:09:51]} 10. a4 {[%clk 0:10:07]}  h6 {[%clk 0:09:19]} 11. a5 {[%clk 0:10:07]}  f5 {[%clk 0:09:18]} 12. c5 {[%clk 0:09:41]}  Nf6 {[%clk 0:09:09]} 13. Nd2 {[%clk 0:09:30]}  f4 {[%clk 0:08:28]} 14. b5 {[%clk 0:09:30]}  g5 {[%clk 0:08:20]} 15. h3 {[%clk 0:09:31]}  dxc5 {[%clk 0:07:06]} 16. Nc4 {[%clk 0:09:30]}  Ng6 {[%clk 0:07:07]} 17. d6 {[%clk 0:09:08]}  Be6 {[%clk 0:06:32]} 18. dxc7 {[%clk 0:08:33]}  Qxc7 {[%clk 0:06:30]} 19. b6 {[%clk 0:08:04]}  axb6 {[%clk 0:05:48]} 20. axb6 {[%clk 0:08:05]}  Qc6 {[%clk 0:05:18]} 21. Rxa8 {[%clk 0:08:04]}  Rxa8 {[%clk 0:05:14]} 22. Qd6 {[%clk 0:08:06]}  Qe8 {[%clk 0:04:20]} 23. Qc7 {[%clk 0:07:55]}  f3 {[%clk 0:03:56]} 24. Nd6 {[%clk 0:07:49]}  fxe2 {[%clk 0:03:56]} 25. Nxe8 {[%clk 0:07:50]}  exf1=Q+ {[%clk 0:03:58]} 26. Kxf1 {[%clk 0:07:51]}  Nxe8 {[%clk 0:03:36]} 27. Qxb7 {[%clk 0:07:52]}  Ra1 {[%clk 0:03:38]} 28. Ne2 {[%clk 0:07:44]}  Bc4 {[%clk 0:03:38]} 29. Ke1 {[%clk 0:07:45]}  Bxe2 {[%clk 0:03:35]} 30. Kxe2 {[%clk 0:07:47]}  Rxc1 {[%clk 0:03:36]} 31. Qc8 {[%clk 0:07:01]}  Kf7 {[%clk 0:03:22]} 32. b7 {[%clk 0:07:01]}  Nf4+ {[%clk 0:03:07]} 33. Kd2 {[%clk 0:07:01]}  Rb1 {[%clk 0:03:08]} 34. g3 {[%clk 0:06:54]}  Ne6 {[%clk 0:01:38]} 35. b8=Q {[%clk 0:06:54]}  Rxb8 {[%clk 0:01:40]} 36. Qxb8 {[%clk 0:06:55]}  N8c7 {[%clk 0:01:10]} 37. Kc3 {[%clk 0:06:48]}  Bf8 {[%clk 0:01:11]} 38. Kc4 {[%clk 0:06:49]}  Ke7 {[%clk 0:01:06]} 39. Qc8 {[%clk 0:06:46]}  Kf7 {[%clk 0:01:05]} 40. Qd7+ {[%clk 0:06:44]}  Be7 {[%clk 0:01:07]} 41. Qd1 {[%clk 0:06:46]}  Kg7 {[%clk 0:01:03]} 42. Qg4 {[%clk 0:06:46]}  Kf7 {[%clk 0:00:52]} 43. Qf5+ {[%clk 0:06:45]}  Bf6 {[%clk 0:00:53]} 44. Qh7+ {[%clk 0:06:44]}  Bg7 {[%clk 0:00:54]} 45. Qf5+ {[%clk 0:06:44]}  Bf6 {[%clk 0:00:49]} 46. Qg4 {[%clk 0:06:45]}  Bg7 {[%clk 0:00:46]} 47. Qd1 {[%clk 0:06:42]}  Ke7 {[%clk 0:00:45]} 48. Qh5 {[%clk 0:06:40]}  Kf6 {[%clk 0:00:44]} 49. h4 {[%clk 0:06:41]}  gxh4 {[%clk 0:00:36]} 50. Qxh4+ {[%clk 0:06:42]}  Kf7 {[%clk 0:00:37]} 51. f4 {[%clk 0:06:41]}  exf4 {[%clk 0:00:36]} 52. gxf4 {[%clk 0:06:42]}  Ne8 {[%clk 0:00:35]} 53. e5 {[%clk 0:06:36]}  Nd4 {[%clk 0:00:08]} 54. Qh5+ {[%clk 0:06:33]}  Kf8 {[%clk 0:00:08]} 55. Qg6 {[%clk 0:06:28]}  Ne2 {[%clk 0:00:04]} 56. Kxc5 {[%clk 0:05:49]}  Ke7 {[%clk 0:00:02]} 57. Qg4 {[%clk 0:05:45]}  Bf8 {[%clk 0:00:02]} 58. Qxe2 {[%clk 0:05:45]}  Kf7+ {[%clk 0:00:03]} 59. Kd5 {[%clk 0:05:45]}  Nc7+ {[%clk 0:00:04]} 60. Ke4 {[%clk 0:05:46]} 1-0


[Site "Internet"]

[Event "Chessable Masters - Torneo preliminare"]
[White "Steinberg, Nitzan"]
[Black "Rasulov, Vugar"]
[WhiteFideId "2801795"]
[BlackFideId "13402390"]
[WhiteElo "2500"]
[BlackElo "2415"]
[Result "1-0"]
[Round "4"]
[TimeControl "600+2"]
[Date "2023.03.13"]
[WhiteClock "0:00:40"]
[BlackClock "0:00:14"]

1. e4 {[%clk 0:10:01]}  c5 {[%clk 0:09:56]} 2. Nf3 {[%clk 0:10:03]}  Nc6 {[%clk 0:09:56]} 3. Bb5 {[%clk 0:10:03]}  d6 {[%clk 0:09:54]} 4. O-O {[%clk 0:09:59]}  Bd7 {[%clk 0:09:54]} 5. c3 {[%clk 0:10:00]}  Nf6 {[%clk 0:09:47]} 6. Re1 {[%clk 0:10:01]}  a6 {[%clk 0:09:47]} 7. Bf1 {[%clk 0:10:01]}  Bg4 {[%clk 0:09:44]} 8. d4 {[%clk 0:09:50]}  g6 {[%clk 0:09:12]} 9. Be3 {[%clk 0:09:06]}  cxd4 {[%clk 0:08:54]} 10. cxd4 {[%clk 0:09:07]}  Bg7 {[%clk 0:08:46]} 11. Nbd2 {[%clk 0:08:43]}  d5 {[%clk 0:08:30]} 12. e5 {[%clk 0:08:36]}  Ne4 {[%clk 0:08:30]} 13. Nb3 {[%clk 0:08:11]}  O-O {[%clk 0:08:20]} 14. h3 {[%clk 0:08:12]}  Bf5 {[%clk 0:08:09]} 15. Nh4 {[%clk 0:07:52]}  Be6 {[%clk 0:07:44]} 16. Bd3 {[%clk 0:07:23]}  f5 {[%clk 0:07:13]} 17. f3 {[%clk 0:06:30]}  Ng3 {[%clk 0:06:49]} 18. Qd2 {[%clk 0:06:14]}  Bc8 {[%clk 0:06:29]} 19. Kh2 {[%clk 0:05:41]}  Nh5 {[%clk 0:06:14]} 20. g4 {[%clk 0:05:03]}  fxg4 {[%clk 0:06:08]} 21. hxg4 {[%clk 0:04:51]}  Nxe5 {[%clk 0:05:54]} 22. dxe5 {[%clk 0:04:29]}  Bxe5+ {[%clk 0:05:56]} 23. Kg1 {[%clk 0:04:28]}  Nf4 {[%clk 0:05:43]} 24. Bf1 {[%clk 0:03:53]}  e6 {[%clk 0:05:35]} 25. Bf2 {[%clk 0:03:51]}  Bg7 {[%clk 0:05:15]} 26. Bg3 {[%clk 0:03:37]}  e5 {[%clk 0:05:08]} 27. Rad1 {[%clk 0:03:28]}  Kh8 {[%clk 0:04:25]} 28. Qh2 {[%clk 0:03:16]}  Kg8 {[%clk 0:04:13]} 29. Ng2 {[%clk 0:02:55]}  g5 {[%clk 0:03:19]} 30. Nxf4 {[%clk 0:02:56]}  gxf4 {[%clk 0:03:13]} 31. Bh4 {[%clk 0:02:57]}  Qd6 {[%clk 0:03:01]} 32. Bd3 {[%clk 0:02:58]}  h6 {[%clk 0:02:25]} 33. Be4 {[%clk 0:02:57]}  Be6 {[%clk 0:02:10]} 34. Qd2 {[%clk 0:02:56]}  Rad8 {[%clk 0:01:49]} 35. Bxd8 {[%clk 0:02:56]}  Rxd8 {[%clk 0:01:51]} 36. Bf5 {[%clk 0:02:25]}  Bf7 {[%clk 0:01:51]} 37. Rc1 {[%clk 0:02:23]}  b6 {[%clk 0:01:44]} 38. Rc2 {[%clk 0:02:06]}  a5 {[%clk 0:01:26]} 39. Nc1 {[%clk 0:02:00]}  h5 {[%clk 0:01:18]} 40. Nd3 {[%clk 0:01:53]}  hxg4 {[%clk 0:01:19]} 41. Bxg4 {[%clk 0:01:54]}  Bg6 {[%clk 0:01:18]} 42. Rec1 {[%clk 0:01:52]}  Qe7 {[%clk 0:01:13]} 43. Rc8 {[%clk 0:01:36]}  Rf8 {[%clk 0:00:50]} 44. Rxf8+ {[%clk 0:01:35]}  Bxf8 {[%clk 0:00:52]} 45. Rc6 {[%clk 0:01:16]}  Bh7 {[%clk 0:00:33]} 46. Be6+ {[%clk 0:00:57]}  Kh8 {[%clk 0:00:34]} 47. Nxe5 {[%clk 0:00:52]}  Qg5+ {[%clk 0:00:26]} 48. Ng4 {[%clk 0:00:53]}  Bc5+ {[%clk 0:00:26]} 49. Rxc5 {[%clk 0:00:49]}  bxc5 {[%clk 0:00:28]} 50. Qxd5 {[%clk 0:00:41]}  Qg7 {[%clk 0:00:14]} 51. Qd8+ {[%clk 0:00:40]} 1-0


[Site "Internet"]

[Event "Chessable Masters - Torneo preliminare"]
[White "Malakhov, Vladimir"]
[Black "Matinian, Nikita"]
[WhiteFideId "4120787"]
[BlackFideId "24129100"]
[WhiteElo "2666"]
[BlackElo "2326"]
[Result "1-0"]
[Round "4"]
[TimeControl "600+2"]
[Date "2023.03.13"]
[WhiteClock "0:02:13"]
[BlackClock "0:00:09"]

1. e4 {[%clk 0:10:01]}  c5 {[%clk 0:10:01]} 2. Nf3 {[%clk 0:10:02]}  e6 {[%clk 0:10:02]} 3. c4 {[%clk 0:10:00]}  Nc6 {[%clk 0:09:59]} 4. d4 {[%clk 0:09:59]}  cxd4 {[%clk 0:09:56]} 5. Nxd4 {[%clk 0:09:59]}  Nf6 {[%clk 0:09:57]} 6. Nc3 {[%clk 0:10:00]}  Bb4 {[%clk 0:09:58]} 7. Nxc6 {[%clk 0:09:58]}  bxc6 {[%clk 0:09:54]} 8. Bd3 {[%clk 0:09:59]}  e5 {[%clk 0:09:46]} 9. O-O {[%clk 0:09:57]}  O-O {[%clk 0:09:47]} 10. h3 {[%clk 0:09:55]}  Re8 {[%clk 0:09:36]} 11. Na4 {[%clk 0:08:51]}  d5 {[%clk 0:09:18]} 12. cxd5 {[%clk 0:08:49]}  cxd5 {[%clk 0:09:18]} 13. exd5 {[%clk 0:08:50]}  Qxd5 {[%clk 0:09:12]} 14. a3 {[%clk 0:08:50]}  Bf8 {[%clk 0:06:51]} 15. Nc3 {[%clk 0:08:49]}  Qe6 {[%clk 0:06:28]} 16. Bb5 {[%clk 0:08:02]}  Re7 {[%clk 0:05:58]} 17. Bg5 {[%clk 0:07:22]}  Bb7 {[%clk 0:05:55]} 18. Bxf6 {[%clk 0:07:22]}  Qxf6 {[%clk 0:05:56]} 19. Nd5 {[%clk 0:07:19]}  Bxd5 {[%clk 0:05:57]} 20. Qxd5 {[%clk 0:07:20]}  Rb8 {[%clk 0:05:59]} 21. b4 {[%clk 0:07:17]}  e4 {[%clk 0:05:56]} 22. Bc4 {[%clk 0:07:11]}  Re5 {[%clk 0:05:53]} 23. Qd4 {[%clk 0:06:47]}  a5 {[%clk 0:05:38]} 24. Bxf7+ {[%clk 0:06:28]}  Kh8 {[%clk 0:05:29]} 25. Rab1 {[%clk 0:06:10]}  axb4 {[%clk 0:05:25]} 26. axb4 {[%clk 0:06:09]}  Rd8 {[%clk 0:04:52]} 27. Qc4 {[%clk 0:05:40]}  Rg5 {[%clk 0:03:29]} 28. Rb3 {[%clk 0:05:02]}  Rd7 {[%clk 0:01:52]} 29. Be6 {[%clk 0:04:35]}  Rd4 {[%clk 0:01:50]} 30. Qc8 {[%clk 0:04:20]}  Rd8 {[%clk 0:01:42]} 31. Qc7 {[%clk 0:04:18]}  Bd6 {[%clk 0:01:40]} 32. Qb6 {[%clk 0:04:11]}  Re5 {[%clk 0:00:54]} 33. Bg4 {[%clk 0:04:01]}  h5 {[%clk 0:00:52]} 34. Be2 {[%clk 0:03:56]}  Rg5 {[%clk 0:00:40]} 35. g3 {[%clk 0:02:26]}  h4 {[%clk 0:00:29]} 36. Bg4 {[%clk 0:02:14]}  Qe5 {[%clk 0:00:09]} 37. Qxd8+ {[%clk 0:02:13]} 1-0


[Site "Internet"]

[Event "Chessable Masters - Torneo preliminare"]
[White "Sourath, Biswas"]
[Black "Sankalp, Gupta"]
[WhiteFideId "35091484"]
[BlackFideId "5097010"]
[WhiteElo "2138"]
[BlackElo "2427"]
[Result "1/2-1/2"]
[Round "4"]
[TimeControl "600+2"]
[Date "2023.03.13"]
[WhiteClock "0:02:34"]
[BlackClock "0:01:19"]

1. d4 {[%clk 0:10:01]}  Nf6 {[%clk 0:10:00]} 2. Bf4 {[%clk 0:10:02]}  g6 {[%clk 0:09:59]} 3. Nc3 {[%clk 0:10:02]}  d5 {[%clk 0:10:00]} 4. e3 {[%clk 0:10:03]}  Bg7 {[%clk 0:09:58]} 5. Nb5 {[%clk 0:10:00]}  Na6 {[%clk 0:09:59]} 6. Nf3 {[%clk 0:10:01]}  O-O {[%clk 0:10:00]} 7. Be2 {[%clk 0:10:00]}  c6 {[%clk 0:09:57]} 8. Nc3 {[%clk 0:10:01]}  Nc7 {[%clk 0:09:58]} 9. O-O {[%clk 0:10:02]}  Nce8 {[%clk 0:09:54]} 10. Na4 {[%clk 0:09:53]}  b6 {[%clk 0:09:46]} 11. Rc1 {[%clk 0:09:48]}  Bb7 {[%clk 0:09:45]} 12. b3 {[%clk 0:09:49]}  Nh5 {[%clk 0:09:42]} 13. Be5 {[%clk 0:09:49]}  f6 {[%clk 0:09:42]} 14. Bg3 {[%clk 0:09:49]}  Nxg3 {[%clk 0:09:42]} 15. hxg3 {[%clk 0:09:51]}  e5 {[%clk 0:09:44]} 16. c4 {[%clk 0:09:51]}  e4 {[%clk 0:09:40]} 17. Nh2 {[%clk 0:09:43]}  f5 {[%clk 0:09:40]} 18. b4 {[%clk 0:09:40]}  Kh8 {[%clk 0:09:28]} 19. b5 {[%clk 0:09:39]}  cxb5 {[%clk 0:09:25]} 20. cxb5 {[%clk 0:09:40]}  Nd6 {[%clk 0:09:23]} 21. Qb3 {[%clk 0:09:41]}  Qd7 {[%clk 0:09:19]} 22. Nc3 {[%clk 0:09:29]}  Qe6 {[%clk 0:09:13]} 23. a4 {[%clk 0:09:27]}  Rfc8 {[%clk 0:09:13]} 24. Nb1 {[%clk 0:09:28]}  Nc4 {[%clk 0:09:08]} 25. Rfd1 {[%clk 0:09:20]}  Rc7 {[%clk 0:09:00]} 26. Na3 {[%clk 0:08:47]}  Na5 {[%clk 0:08:40]} 27. Qb2 {[%clk 0:08:46]}  Rac8 {[%clk 0:08:41]} 28. Rxc7 {[%clk 0:08:45]}  Rxc7 {[%clk 0:08:43]} 29. Rc1 {[%clk 0:08:41]}  Qc8 {[%clk 0:08:36]} 30. Rxc7 {[%clk 0:08:42]}  Qxc7 {[%clk 0:08:38]} 31. Nc2 {[%clk 0:08:41]}  Bf8 {[%clk 0:08:26]} 32. f4 {[%clk 0:08:18]}  exf3 {[%clk 0:08:17]} 33. Nxf3 {[%clk 0:08:16]}  Qxg3 {[%clk 0:08:17]} 34. Qc3 {[%clk 0:08:06]}  Bd6 {[%clk 0:07:49]} 35. Nb4 {[%clk 0:07:59]}  f4 {[%clk 0:06:53]} 36. exf4 {[%clk 0:07:47]}  Bxf4 {[%clk 0:06:51]} 37. Nd3 {[%clk 0:06:10]}  Be3+ {[%clk 0:05:55]} 38. Kh1 {[%clk 0:06:10]}  Qg4 {[%clk 0:05:43]} 39. Qc7 {[%clk 0:04:59]}  Bxd4 {[%clk 0:04:03]} 40. Qd8+ {[%clk 0:04:42]}  Kg7 {[%clk 0:04:03]} 41. Qe7+ {[%clk 0:04:12]}  Kg8 {[%clk 0:02:57]} 42. Qe8+ {[%clk 0:04:10]}  Kg7 {[%clk 0:02:58]} 43. Qe7+ {[%clk 0:04:12]}  Kg8 {[%clk 0:02:59]} 44. Nxd4 {[%clk 0:02:51]}  Qxd4 {[%clk 0:03:01]} 45. Ne5 {[%clk 0:02:51]}  Qf4 {[%clk 0:02:46]} 46. Ng4 {[%clk 0:02:46]}  Kh8 {[%clk 0:02:25]} 47. Nf6 {[%clk 0:02:35]}  Qh4+ {[%clk 0:01:17]} 48. Kg1 {[%clk 0:02:35]}  Qe1+ {[%clk 0:01:18]} 49. Kh2 {[%clk 0:02:34]}  Qh4+ {[%clk 0:01:19]} 1/2-1/2


[Site "Internet"]

[Event "Chessable Masters - Torneo preliminare"]
[White "Ju, Wenjun"]
[Black "Golubev, Mikhail"]
[WhiteFideId "8603006"]
[BlackFideId "14100983"]
[WhiteElo "2598"]
[BlackElo "2361"]
[Result "1-0"]
[Round "4"]
[TimeControl "600+2"]
[Date "2023.03.13"]
[WhiteClock "0:00:15"]
[BlackClock "0:00:03"]

1. d4 {[%clk 0:09:57]}  Nf6 {[%clk 0:09:59]} 2. c4 {[%clk 0:09:57]}  g6 {[%clk 0:10:00]} 3. Nf3 {[%clk 0:09:57]}  Bg7 {[%clk 0:10:01]} 4. g3 {[%clk 0:09:59]}  O-O {[%clk 0:10:02]} 5. Bg2 {[%clk 0:10:00]}  d6 {[%clk 0:10:03]} 6. O-O {[%clk 0:10:01]}  Nbd7 {[%clk 0:10:04]} 7. Nc3 {[%clk 0:10:02]}  e5 {[%clk 0:10:05]} 8. e4 {[%clk 0:10:04]}  Re8 {[%clk 0:10:06]} 9. Re1 {[%clk 0:09:48]}  exd4 {[%clk 0:09:49]} 10. Nxd4 {[%clk 0:09:48]}  c6 {[%clk 0:09:36]} 11. Be3 {[%clk 0:09:37]}  Nc5 {[%clk 0:09:03]} 12. f3 {[%clk 0:09:34]}  Nfd7 {[%clk 0:07:45]} 13. f4 {[%clk 0:09:15]}  Nf6 {[%clk 0:07:36]} 14. e5 {[%clk 0:06:01]}  Ng4 {[%clk 0:07:11]} 15. Nxc6 {[%clk 0:06:01]}  bxc6 {[%clk 0:05:45]} 16. Bxc6 {[%clk 0:04:35]}  Nxe3 {[%clk 0:05:41]} 17. Rxe3 {[%clk 0:04:37]}  Bb7 {[%clk 0:05:14]} 18. Bxe8 {[%clk 0:04:30]}  Qxe8 {[%clk 0:05:13]} 19. Qxd6 {[%clk 0:04:31]}  Bf8 {[%clk 0:05:08]} 20. Qd2 {[%clk 0:04:27]}  Rd8 {[%clk 0:03:44]} 21. Nd5 {[%clk 0:04:20]}  Qc6 {[%clk 0:03:27]} 22. b3 {[%clk 0:03:57]}  Ne6 {[%clk 0:02:53]} 23. Rd3 {[%clk 0:03:48]}  Nc5 {[%clk 0:02:21]} 24. Ne7+ {[%clk 0:02:32]}  Bxe7 {[%clk 0:02:16]} 25. Rxd8+ {[%clk 0:02:34]}  Kg7 {[%clk 0:01:05]} 26. Rd5 {[%clk 0:02:34]}  Ne4 {[%clk 0:00:27]} 27. Qe1 {[%clk 0:01:46]}  Bc5+ {[%clk 0:00:17]} 28. Kg2 {[%clk 0:01:38]}  Nf2 {[%clk 0:00:17]} 29. Kf1 {[%clk 0:00:16]}  Ng4 {[%clk 0:00:18]} 30. Qd2 {[%clk 0:00:10]}  Ne3+ {[%clk 0:00:17]} 31. Ke2 {[%clk 0:00:10]}  Nxd5 {[%clk 0:00:16]} 32. cxd5 {[%clk 0:00:11]}  Qd7 {[%clk 0:00:13]} 33. Qd3 {[%clk 0:00:10]}  Qg4+ {[%clk 0:00:12]} 34. Kd2 {[%clk 0:00:11]}  Bb4+ {[%clk 0:00:13]} 35. Kc2 {[%clk 0:00:09]}  Qh3 {[%clk 0:00:13]} 36. Rd1 {[%clk 0:00:07]}  Qg2+ {[%clk 0:00:11]} 37. Kb1 {[%clk 0:00:07]}  Ba3 {[%clk 0:00:03]} 38. Qc2 {[%clk 0:00:06]}  Bxd5 {[%clk 0:00:03]} 39. Qxg2 {[%clk 0:00:06]}  Bxg2 {[%clk 0:00:04]} 40. Kc2 {[%clk 0:00:07]}  Be4+ {[%clk 0:00:03]} 41. Kc3 {[%clk 0:00:08]}  f5 {[%clk 0:00:04]} 42. b4 {[%clk 0:00:09]}  a5 {[%clk 0:00:03]} 43. bxa5 {[%clk 0:00:09]}  Bc5 {[%clk 0:00:04]} 44. a6 {[%clk 0:00:10]}  Kf8 {[%clk 0:00:04]} 45. Rd7 {[%clk 0:00:10]}  h5 {[%clk 0:00:05]} 46. a7 {[%clk 0:00:10]}  Ke8 {[%clk 0:00:05]} 47. Rc7 {[%clk 0:00:10]}  Bg1 {[%clk 0:00:06]} 48. Rc8+ {[%clk 0:00:10]}  Kd7 {[%clk 0:00:07]} 49. a8=Q {[%clk 0:00:11]}  Bxa8 {[%clk 0:00:09]} 50. Rxa8 {[%clk 0:00:13]}  Bxh2 {[%clk 0:00:10]} 51. Rg8 {[%clk 0:00:12]}  Bxg3 {[%clk 0:00:10]} 52. Rxg6 {[%clk 0:00:13]}  h4 {[%clk 0:00:05]} 53. Kd4 {[%clk 0:00:12]}  Bxf4 {[%clk 0:00:03]} 54. Kd5 {[%clk 0:00:13]}  h3 {[%clk 0:00:03]} 55. Rg7+ {[%clk 0:00:14]}  Kd8 {[%clk 0:00:03]} 56. Rh7 {[%clk 0:00:14]}  Bg3 {[%clk 0:00:03]} 57. Rxh3 {[%clk 0:00:14]}  f4 {[%clk 0:00:04]} 58. Ke4 {[%clk 0:00:14]}  Ke7 {[%clk 0:00:03]} 59. Rh6 {[%clk 0:00:15]} 1-0


[Site "Internet"]

[Event "Chessable Masters - Torneo preliminare"]
[White "Vasquez Schroeder, Rodrigo"]
[Black "Agrest, Evgenij"]
[WhiteFideId "3400042"]
[BlackFideId "1705024"]
[WhiteElo "2589"]
[BlackElo "2576"]
[Result "0-1"]
[Round "4"]
[TimeControl "600+2"]
[Date "2023.03.13"]
[WhiteClock "0:06:04"]
[BlackClock "0:02:48"]

1. e4 {[%clk 0:10:01]}  c6 {[%clk 0:09:55]} 2. d4 {[%clk 0:10:01]}  d5 {[%clk 0:09:56]} 3. exd5 {[%clk 0:10:02]}  cxd5 {[%clk 0:09:56]} 4. c4 {[%clk 0:10:04]}  Nf6 {[%clk 0:09:56]} 5. Nc3 {[%clk 0:10:05]}  Be6 {[%clk 0:09:56]} 6. Nge2 {[%clk 0:09:55]}  dxc4 {[%clk 0:09:55]} 7. Nf4 {[%clk 0:09:57]}  Bg4 {[%clk 0:09:55]} 8. f3 {[%clk 0:09:54]}  Bd7 {[%clk 0:09:54]} 9. Bxc4 {[%clk 0:09:54]}  e6 {[%clk 0:09:55]} 10. O-O {[%clk 0:09:43]}  Bd6 {[%clk 0:09:53]} 11. d5 {[%clk 0:09:15]}  e5 {[%clk 0:09:52]} 12. Nfe2 {[%clk 0:09:15]}  b5 {[%clk 0:09:20]} 13. Bb3 {[%clk 0:09:15]}  b4 {[%clk 0:09:08]} 14. Ne4 {[%clk 0:09:15]}  Nxe4 {[%clk 0:09:08]} 15. fxe4 {[%clk 0:09:16]}  O-O {[%clk 0:09:08]} 16. Be3 {[%clk 0:09:13]}  Na6 {[%clk 0:09:04]} 17. Rc1 {[%clk 0:09:03]}  Qe7 {[%clk 0:07:43]} 18. Bc4 {[%clk 0:09:00]}  Nc5 {[%clk 0:07:38]} 19. Ng3 {[%clk 0:08:59]}  g6 {[%clk 0:07:29]} 20. Bh6 {[%clk 0:08:39]}  Rfc8 {[%clk 0:07:12]} 21. Qf3 {[%clk 0:08:31]}  Rc7 {[%clk 0:06:01]} 22. b3 {[%clk 0:08:18]}  Bc8 {[%clk 0:05:13]} 23. Kh1 {[%clk 0:08:00]}  Qh4 {[%clk 0:05:08]} 24. Qe3 {[%clk 0:07:58]}  f6 {[%clk 0:04:52]} 25. Be2 {[%clk 0:07:32]}  Bb7 {[%clk 0:03:47]} 26. a3 {[%clk 0:07:14]}  a5 {[%clk 0:03:43]} 27. axb4 {[%clk 0:07:07]}  axb4 {[%clk 0:03:43]} 28. Qd2 {[%clk 0:06:50]}  Nxb3 {[%clk 0:03:34]} 29. Qb2 {[%clk 0:06:15]}  Nxc1 {[%clk 0:03:29]} 30. Bxc1 {[%clk 0:06:17]}  Ra3 {[%clk 0:03:25]} 31. Bf3 {[%clk 0:06:13]}  Rac3 {[%clk 0:03:18]} 32. Qb1 {[%clk 0:06:09]}  Ba6 {[%clk 0:03:08]} 33. Re1 {[%clk 0:06:10]}  Bd3 {[%clk 0:03:04]} 34. Qa1 {[%clk 0:06:11]}  Rc8 {[%clk 0:03:02]} 35. Bd2 {[%clk 0:06:09]}  Rc2 {[%clk 0:03:01]} 36. Be3 {[%clk 0:06:06]}  b3 {[%clk 0:02:59]} 37. Qa4 {[%clk 0:06:04]}  b2 {[%clk 0:02:51]} 38. Qd7 {[%clk 0:06:04]}  Rc1 {[%clk 0:02:48]} 39. Qe6+ {[%clk 0:06:04]}  Kh8 {[%clk 0:02:48]} 0-1


[Site "Internet"]